fUSD/lending_fUSD_20240704
["ID","MTS","AMOUNT","RATE_DAILY","PERIOD"]
[331064366,1720056646501,-150.0,0.00018174,2]
[331064367,1720056646511,-150.0,0.00018179,2]
[331064368,1720056646521,-150.0,0.00018179,2]
[331064369,1720056646531,-150.0,0.00018182,2]
[331064370,1720056646540,-150.0,0.00018183,2]
[331064371,1720056646550,-150.0,0.00018185,2]
[331064372,1720056646559,-150.0,0.00018186,2]
[331064373,1720056646568,-150.0,0.00018192,2]
[331064374,1720056646578,-150.0,0.00018192,2]
[331064375,1720056646587,-150.0,0.00018197,2]
[331064376,1720056646596,-150.0,0.00018198,2]
[331064377,1720056646606,-150.0,0.00018206,2]
[331064378,1720056646615,-150.0,0.00018212,2]
[331064379,1720056646624,-150.0,0.00018212,2]
[331064380,1720056646633,-150.0,0.00018224,2]
[331064381,1720056646642,-150.0,0.00018229,2]
[331064382,1720056646652,-150.0,0.00018231,2]
[331064383,1720056646660,-150.0,0.00018235,2]
[331064384,1720056646669,-150.0,0.00018245,2]
[331064385,1720056646679,-420.55919457,0.00018247,2]
[331064386,1720056646688,-150.0,0.00018252,2]
[331064387,1720056646698,-150.0,0.00018262,2]
[331064388,1720056646710,-150.0,0.00018266,2]
[331064389,1720056646719,-150.0,0.00018267,2]
[331064390,1720056646729,-150.0,0.00018278,2]
[331064391,1720056646738,-150.0,0.00018293,2]
[331064392,1720056646747,-150.0,0.00018295,2]
[331064393,1720056646756,-150.0,0.00018295,2]
[331064394,1720056646765,-150.0,0.00018296,2]
[331064395,1720056646774,-150.0,0.00018297,2]
[331064396,1720056646783,-150.0,0.00018299,2]
[331064397,1720056646792,-150.0,0.000183,2]
[331064398,1720056646801,-150.0,0.00018306,2]
[331064399,1720056646810,-150.0,0.00018311,2]
[331064400,1720056646819,-150.0,0.00018313,2]
[331064401,1720056646828,-150.0,0.00018314,2]
[331064402,1720056646838,-150.0,0.00018315,2]
[331064403,1720056646847,-150.0,0.00018318,2]
[331064404,1720056646856,-150.0,0.00018319,2]
[331064405,1720056646866,-150.0,0.00018322,2]
[331064406,1720056646875,-150.0,0.00018327,2]
[331064407,1720056646883,-388.83602839,0.00018333,2]
[331064408,1720056646893,-150.0,0.00018335,2]
[331064409,1720056646902,-150.0,0.00018337,2]
[331064410,1720056646911,-150.0,0.00018338,2]
[331064411,1720056646920,-1715.45,0.0001835,2]
[331064414,1720056646929,-475.18217,0.0001835,2]
[331064417,1720056646939,-363.96,0.00018354,2]
[331064420,1720056646948,-150.0,0.00018379,2]
[331064422,1720056646961,-150.37205751,0.00018533,2]
[331064425,1720056646970,-277.158,0.00018837,2]
[331064428,1720056646979,-170.65,0.00018849,30]
[331064431,1720056646988,-477.43,0.00018979,2]
[331064434,1720056646997,-161.059766,0.00018999,2]
[331064436,1720056647007,-703.10959103,0.00019,2]
[331064438,1720056647016,-439.94982301,0.00019069,2]
[331064440,1720056647026,-533.5029293,0.00019229,2]
[331064442,1720056647034,-292.54231197,0.00019299,2]
[331064444,1720056647044,-246.86391173,0.0001935,2]
[331064446,1720056647053,-486.61414226,0.00019354,2]
[331064448,1720056647062,-365.78781787,0.00019399,2]
[331064450,1720056647071,-2500.0,0.000195,2]
[331064452,1720056647080,-151.0,0.000195,2]
[331064454,1720056647089,-151.0,0.000195,2]
[331064456,1720056647098,-151.0,0.000195,2]
[331064458,1720056647107,-151.0,0.000195,2]
[331064460,1720056647116,-151.0,0.000195,2]
[331064462,1720056647125,-151.0,0.000195,2]
[331064464,1720056647134,-151.0,0.000195,2]
[331064466,1720056647143,-151.0,0.000195,2]
[331064467,1720056647152,-200.0,0.00019579,2]
[331064468,1720056647161,-1308.786,0.00019866,2]
[331064469,1720056647171,-286.459,0.00019866,2]
[331064470,1720056647180,-175.834,0.00019866,2]
[331064471,1720056647189,-946.68077921,0.0001999,2]
[331064472,1720056647197,-500.0,0.00019997,2]
[331064473,1720056647209,-448.19047151,0.0002,2]
[331064474,1720056647218,-155.0,0.0002,2]
[331064475,1720056647228,-581.49834426,0.0002,2]
[331064476,1720056647237,-16381.2873865,0.0002,5]
[331064477,1720056647258,-280.30404985,0.0002,5]
[331064478,1720056697232,227.14852012,0.00011199,2]
[331064479,1720056729644,2939.50810681,0.00011199,2]
[331064483,1720056902891,-9352.0,0.00015,10]
[331064486,1720057033595,160.39375061,0.00011199,2]
[331064487,1720057072795,155.28758417,0.00011199,2]
[331064488,1720057079179,155.0,0.00011199,2]
[331064489,1720057083892,155.18510572,0.00011199,2]
[331064490,1720057085066,5300.61102948,0.00011199,2]
[331064491,1720057092908,196.73797948,0.00011199,2]
[331064492,1720057107235,227.14852012,0.00011199,2]
[331064493,1720057111528,202.72559596,0.00011199,2]
[331064494,1720057116636,533.58557093,0.00011199,2]
[331064495,1720057125599,202.72559596,0.00011199,2]
[331064497,1720057210606,5601.11144692,0.00011199,2]
[331064498,1720057325013,244.69865331,0.00011199,2]
[331064499,1720057345720,1265.99629449,0.00011199,2]
[331064500,1720057362082,325.51,0.00025,60]
[331064501,1720057363822,155.43629329,0.00011199,2]
[331064502,1720057378505,1298.138827,0.00011199,2]
[331064503,1720057412089,5146.12405902,0.00011199,2]
[331064505,1720057489634,662.43257771,0.00011199,2]
[331064506,1720057550764,155.25511765,0.00011199,2]
[331064507,1720057561384,155.56363695,0.00011199,2]
[331064508,1720057573658,405.32512675,0.00011199,2]
[331064509,1720057600406,518.77260708,0.00011199,2]
[331064510,1720057621623,236.25812047,0.00011199,2]
[331064511,1720057622597,158.92616413,0.00011199,2]
[331064562,1720057834863,-1177.537448,0.00012897,2]
[331064563,1720057834873,-166.29542127,0.00012928,2]
[331064564,1720057834882,-3526.03919105,0.00013028,2]
[331064565,1720057834893,-236.88192898,0.00013028,2]
[331064566,1720057834902,-43.95661451,0.00013128,2]
[331064568,1720057834913,-614.1349236,0.00013128,2]
[331064570,1720057834922,-164.34608351,0.00013128,2]
[331064571,1720057834932,-392.1909,0.00013443,2]
[331064572,1720057834941,-686.40959342,0.00013574,2]
[331064574,1720057834951,-1037.40272977,0.0001387,2]
[331064575,1720057834960,-499.99,0.0001387,2]
[331064578,1720057834975,-284.87,0.00014112,2]
[331064579,1720057834984,-564.49984047,0.00014113,2]
[331064582,1720057834994,-746.56164777,0.00014113,2]
[331064584,1720057835005,-830.08689098,0.00014113,2]
[331064586,1720057835019,-6034.4833819,0.00014113,2]
[331064587,1720057835028,-499.99,0.00014113,2]
[331064588,1720057835036,-1544.11058074,0.00014113,2]
[331064589,1720057835047,-479.84771151,0.00014113,2]
[331064590,1720057835057,-699.67944676,0.00014113,2]
[331064591,1720057835068,-478.59396333,0.00014113,2]
[331064592,1720057835078,-1215.41829766,0.00014113,2]
[331064593,1720057835087,-306.51193066,0.00014899,2]
[331064594,1720057835098,-454.84025672,0.00014899,2]
[331064595,1720057835109,-374.7068039,0.00014899,2]
[331064596,1720057835120,-3345.36419737,0.00014899,2]
[331064597,1720057835128,-4702.18002016,0.00015399,2]
[331064598,1720057835159,-898.06997984,0.00015399,2]
[331064599,1720057835169,-358.00213256,0.0001569,2]
[331064600,1720057835180,-5801.46363943,0.0001569,2]
[331064601,1720057835191,-4264.71434825,0.0001569,2]
[331064602,1720057835200,-258.87,0.0001569,2]
[331064603,1720057835208,-150.99,0.0001569,2]
[331064604,1720057835222,-439.72,0.00016217,2]
[331064605,1720057835231,-1189.42,0.00016681,5]
[331064606,1720057835240,-178.84,0.00017124,2]
[331064607,1720057835249,-435.79,0.00017328,2]
[331064608,1720057835258,-250.0,0.00017493,2]
[331064609,1720057835268,-552.12,0.00017728,2]
[331064610,1720057835278,-250.0,0.00017765,2]
[331064611,1720057835287,-1907.13244869,0.00017999,2]
[331064612,1720057835296,-439.72,0.00018481,2]
[331064613,1720057835305,-1506.48984501,0.00018717,2]
[331064614,1720057835314,-221.73,0.00018822,3]
[331064615,1720057835323,-1547.39498095,0.00018835,2]
[331064616,1720057835332,-722.65748803,0.00018835,2]
[331064617,1720057835341,-420.06712397,0.00018864,2]
[331064618,1720057835350,-367.32329464,0.00018899,2]
[331064619,1720057835359,-438.34775681,0.00018899,2]
[331064620,1720057835368,-308.95477359,0.00018899,2]
[331064621,1720057835377,-163.81447728,0.00018919,2]
[331064622,1720057835386,-10000.0,0.00018926,2]
[331064623,1720057835395,-346.5178534,0.00018999,2]
[331064624,1720057835404,-800.77625506,0.00019,2]
[331064625,1720057835413,-180.36,0.00019359,3]
[331064626,1720057835422,-541.13,0.00019359,3]
[331064627,1720057835431,-76520.51956107,0.00019369,2]
[331064628,1720057835442,-535.511,0.00019369,2]
[331064629,1720057835453,-500.0,0.00019369,2]
[331064630,1720057835464,-1531.48858546,0.00019369,2]
[331064631,1720057835478,-620.19845021,0.00019369,2]
[331064633,1720057839749,-264.6200961,0.00018835,2]
[331064636,1720057839760,-1294.9789888,0.00018926,2]
[331064639,1720057839770,-584.85816378,0.00019369,2]
[331064642,1720057839782,-1079.82897878,0.00019369,2]
[331064648,1720057840092,-4412.536073,0.00019369,2]
[331064649,1720057840104,-30214.0591877,0.00019369,2]
[331064650,1720057840114,-361.81612524,0.000194,2]
[331064651,1720057840124,-435.79,0.00019494,2]
[331064652,1720057840134,-2500.0,0.000195,2]
[331064653,1720057840144,-2508.97963729,0.00019562,2]
[331064654,1720057840154,-162.92030461,0.00019562,2]
[331064655,1720057840163,-151.0,0.00019564,2]
[331064656,1720057840173,-561.2154,0.00019662,2]
[331064657,1720057840182,-154.930696,0.00019762,2]
[331064658,1720057840192,-153.71725,0.00019762,2]
[331064659,1720057840201,-153.067952,0.00019762,2]
[331064660,1720057840211,-153.159886,0.00019762,2]
[331064661,1720057840220,-284.450891,0.00019762,2]
[331064662,1720057840232,-154.692057,0.00019762,2]
[331064663,1720057840242,-400.51815,0.000198,2]
[331064664,1720057840251,-11077.0,0.000198,5]
[331064665,1720057840260,-500.0,0.0001984,2]
[331064666,1720057840270,-2508.97963727,0.00019932,2]
[331064667,1720057840279,-291.5997749,0.00019964,2]
[331064668,1720057840289,-151.0,0.00019997,2]
[331064669,1720057840299,-159.644585,0.00019997,2]
[331064670,1720057840308,-2466.80005955,0.00019999,2]
[331064671,1720057840318,-7338.40856365,0.0002,5]
[331064672,1720057840328,-166.78760938,0.0002,2]
[331064673,1720057840337,-2922.2070378,0.0002,2]
[331064674,1720057840347,-152.280651,0.0002,2]
[331064677,1720057840357,-2313.3062297,0.0002,5]
[331064678,1720057840367,-151.0,0.0002,2]
[331064679,1720057840376,-151.0,0.0002,2]
[331064680,1720057840385,-155.917748,0.0002,2]
[331064682,1720057840394,-151.0,0.0002009,2]
[331064683,1720057840404,-155.0,0.00020144,2]
[331064685,1720057840414,-39775.6741,0.000202,2]
[331064687,1720057840424,-155.977782,0.000202,2]
[331064689,1720057840434,-163.01429,0.000202,2]
[331064692,1720057840445,-151.0,0.000202,2]
[331064694,1720057840455,-134.29854642,0.000202,2]
[331064696,1720057840467,-16.70145358,0.000202,2]
[331064698,1720057840480,-357.0,0.000202,2]
[331064700,1720057840492,-151.0,0.000202,2]
[331064702,1720057840503,-151.0,0.000202,2]
[331064705,1720057840515,-1000.0,0.000202,2]
[331064707,1720057840530,-151.0,0.000202,2]
[331064709,1720057840543,-151.0,0.000202,2]
[331064712,1720057840555,-266.319615,0.000202,2]
[331064714,1720057840567,-151.0,0.000202,2]
[331064716,1720057840579,-258.803371,0.000202,2]
[331064718,1720057840590,-151.0,0.000202,2]
[331064720,1720057840600,-225.0,0.000202,2]
[331064722,1720057840612,-265.662895,0.000202,2]
[331064725,1720057840625,-186.137836,0.000202,2]
[331064728,1720057840638,-151.0,0.000202,2]
[331064731,1720057840649,-400.51815,0.0002027,2]
[331064735,1720057840662,-150.0,0.00020274,2]
[331064738,1720057840674,-150.0,0.00020274,2]
[331064742,1720057840686,-509.0,0.000203,3]
[331064744,1720057840698,-2508.97963727,0.00020302,2]
[331064747,1720057840708,-230.787709,0.00020347,2]
[331064751,1720057840721,-320.690687,0.00020347,2]
[331064754,1720057840741,-162.92030457,0.00020394,2]
[331064756,1720057840755,-156.936825,0.00020438,2]
[331064759,1720057840768,-848.36,0.00020438,2]
[331064761,1720057840781,-317.96,0.00020438,2]
[331064763,1720057840794,-421.74,0.00020438,2]
[331064765,1720057840806,-160.39,0.00020438,2]
[331064767,1720057840820,-151.17,0.00020438,2]
[331064769,1720057840832,-404.66,0.00020438,2]
[331064771,1720057840843,-305.74,0.00020438,2]
[331064773,1720057840854,-856.13,0.00020438,2]
[331064775,1720057840866,-682.48,0.00020438,2]
[331064777,1720057840877,-291.93,0.00020438,2]
[331064779,1720057840889,-500.0,0.00020544,2]
[331064781,1720057840902,-200.0,0.00020544,2]
[331064783,1720057840913,-320.690687,0.00020601,2]
[331064784,1720057840925,-2508.97963727,0.00020671,2]
[331064785,1720057840937,-1536.0,0.000207,4]
[331064786,1720057840949,-360.72,0.00020729,3]
[331064787,1720057840959,-439.72,0.00020745,2]
[331064788,1720057840969,-1600.0,0.000208,7]
[331064789,1720057840987,-320.690687,0.00020855,2]
[331064790,1720057840998,-163.01429,0.0002089,2]
[331064791,1720057841009,-151.0,0.0002089,2]
[331064792,1720057841019,-151.0,0.0002089,2]
[331064793,1720057841033,-151.0,0.0002089,2]
[331064794,1720057841045,-151.0,0.0002089,2]
[331064795,1720057841056,-151.0,0.0002089,2]
[331064796,1720057841068,-151.0,0.0002089,2]
[331064797,1720057841080,-248.43113681,0.0002089,2]
[331064798,1720057841091,-172.15452279,0.000209,2]
[331064799,1720057841103,-179.624852,0.000209,2]
[331064800,1720057841115,-3300.0,0.000209,7]
[331064801,1720057841127,-400.51815,0.000209,2]
[331064802,1720057841138,-608.57932204,0.000209,2]
[331064803,1720057841151,-3353.7426,0.000209,2]
[331064804,1720057841164,-151.0,0.000209,2]
[331064805,1720057841174,-163.01429,0.0002098,2]
[331064806,1720057841184,-151.0,0.0002098,2]
[331064807,1720057841194,-151.0,0.0002098,2]
[331064808,1720057841205,-151.0,0.0002098,2]
[331064809,1720057841215,-151.0,0.0002098,2]
[331064810,1720057841231,-151.0,0.0002098,2]
[331064811,1720057841242,-151.0,0.0002098,2]
[331064812,1720057841254,-163.01429,0.0002099,2]
[331064813,1720057841265,-151.0,0.0002099,2]
[331064814,1720057841276,-151.0,0.0002099,2]
[331064815,1720057841287,-151.0,0.0002099,2]
[331064816,1720057841299,-160.898207,0.0002099,2]
[331064817,1720057841309,-234.56401,0.0002099,2]
[331064818,1720057841319,-158.272987,0.0002099,2]
[331064819,1720057841329,-136677.76497967,0.0002099,3]
[331064820,1720057841343,-627.72104152,0.0002099,3]
[331064821,1720057841356,-1010.92811315,0.0002099,3]
[331064822,1720057841371,-1098.9999,0.0002099,3]
[331064823,1720057841384,-58662.26177766,0.0002099,3]
[331064824,1720057841396,-398.79562864,0.0002099,2]
[331064825,1720057841406,-176.36,0.0002099,2]
[331064826,1720057841417,-174.4044,0.0002099,2]
[331064827,1720057841427,-150.65731186,0.00020995,2]
[331064828,1720057841437,-889.0,0.00021,2]
[331064829,1720057841447,-602.80201007,0.00021,2]
[331064830,1720057841460,-152075.73989747,0.00021,3]
[331064831,1720057841473,-2417.33744797,0.00021,3]
[331064832,1720057841491,-10430.79943194,0.00021,3]
[331064833,1720057841505,-1379.9999999,0.00021,3]
[331064834,1720057841519,-3247.0,0.00021,3]
[331064835,1720057841532,-7272.65439133,0.00021,3]
[331064836,1720057841544,-1869.7443923,0.00021,3]
[331064837,1720057841557,-1168.91354638,0.00021,3]
[331064838,1720057841570,-1659.99434364,0.00021,3]
[331064839,1720057841583,-2040.00565636,0.00021,3]
[331064840,1720057841727,-285.31078987,0.00021,3]
[331064841,1720057841739,-3324.44433345,0.00021,3]
[331064842,1720057841751,-1531.22982773,0.00021,3]
[331064843,1720057841764,-14676.573113,0.00021,3]
[331064844,1720057841777,-380.45359623,0.00021,3]
[331064845,1720057841792,-151073.51210182,0.00021,3]
[331064846,1720057841809,-448.64,0.00021,3]
[331064847,1720057841838,-741.079999,0.00021,3]
[331064848,1720057841852,-1642.8995,0.00021,3]
[331064849,1720057841865,-1009.38581259,0.00021,3]
[331064850,1720057841878,-4437.732292,0.00021,3]
[331064851,1720057841893,-1100.0,0.00021,3]
[331064852,1720057841905,-5932.3,0.00021,3]
[331064854,1720057845024,-268.08220073,0.00018649,2]
[331064857,1720057845036,-1238.40764428,0.00018649,2]
[331064860,1720057845047,-2470.433754,0.0001999,2]
[331064864,1720057845057,-72004.9661166,0.00021,3]
[331064868,1720057845068,-163.01429,0.00021,2]
[331064872,1720057845078,-151.0,0.00021,2]
[331064876,1720057845088,-151.0,0.00021,2]
[331064880,1720057845098,-2508.97963727,0.00021041,2]
[331064884,1720057845108,-717.04938775,0.00021068,2]
[331064889,1720057845119,-151.0,0.0002109,2]
[331064894,1720057845130,-837.5,0.00021096,2]
[331064897,1720057845140,-167.13,0.00021096,2]
[331064900,1720057845150,-714.79,0.00021096,2]
[331064901,1720057845160,-301.64,0.00021096,2]
[331064902,1720057845171,-876.74,0.00021096,2]
[331064903,1720057845181,-320.690687,0.0002111,2]
[331064904,1720057845192,-248.43113677,0.00021122,2]
[331064905,1720057845202,-608.57932202,0.00021175,2]
[331064906,1720057845213,-3826.25951752,0.00021199,2]
[331064907,1720057845223,-162.92030457,0.00021226,2]
[331064908,1720057845236,-500.0,0.00021248,2]
[331064909,1720057845246,-200.0,0.00021248,2]
[331064910,1720057845256,-8844.95502237,0.0002129,3]
[331064911,1720057845271,-28884.12608473,0.0002129,3]
[331064912,1720057845280,-24640.13391527,0.000213,3]
[331064913,1720057845292,-496.07624443,0.000213,3]
[331064914,1720057845304,-36912.01810043,0.000213,3]
[331064915,1720057845313,-163.01429,0.000213,2]
[331064916,1720057845322,-151.0,0.000213,2]
[331064919,1720057845332,-151.0,0.000213,2]
[331064924,1720057845341,-151.0,0.000213,2]
[331064975,1720057845631,-3826.25951742,0.00021353,2]
[331064978,1720057845649,-248.43113677,0.00021354,2]
[331064980,1720057845661,-320.690687,0.00021364,2]
[331064982,1720057845670,-151.0,0.00021366,2]
[331064984,1720057845679,-294.19276197,0.00021394,2]
[331064986,1720057845688,-180.0,0.00021397,2]
[331064988,1720057845698,-150.0,0.000214,2]
[331064990,1720057845707,-263.0,0.000214,2]
[331064992,1720057845716,-9432.27027678,0.00021403,3]
[331064994,1720057845733,-28296.8108303,0.00021404,3]
[331064997,1720057845749,-2508.97963727,0.00021411,2]
[331064999,1720057845760,-67148.2298365,0.00021414,2]
[331065001,1720057845770,-9184.2352296,0.00021414,2]
[331065003,1720057845780,-4291.0972385,0.00021414,2]
[331065005,1720057845790,-163.01429,0.00021414,2]
[331065007,1720057845801,-151.0,0.00021414,2]
[331065009,1720057845812,-151.0,0.00021414,2]
[331065011,1720057845822,-151.0,0.00021414,2]
[331065013,1720057845832,-500.0,0.00021419,2]
[331065015,1720057845841,-299.50686412,0.00021419,2]
[331065017,1720057845853,-607.67582389,0.00021419,2]
[331065019,1720057845863,-500.0,0.00021419,2]
[331065021,1720057845872,-259.783671,0.00021419,2]
[331065023,1720057845882,-500.0,0.00021419,2]
[331065025,1720057845893,-466.95531118,0.00021419,2]
[331065027,1720057845902,-500.0,0.00021419,2]
[331065029,1720057845912,-500.0,0.00021419,2]
[331065031,1720057845922,-500.0,0.00021419,2]
[331065033,1720057845931,-500.0,0.00021419,2]
[331065035,1720057845941,-500.0,0.00021419,2]
[331065037,1720057845951,-500.0,0.00021419,2]
[331065039,1720057845961,-186.81184031,0.00021419,2]
[331065041,1720057845971,-500.0,0.00021419,2]
[331065043,1720057845988,-500.0,0.00021419,2]
[331065045,1720057845997,-500.0,0.00021419,2]
[331065047,1720057846007,-500.0,0.00021419,2]
[331065049,1720057846020,-500.0,0.00021419,2]
[331065051,1720057846030,-500.0,0.00021419,2]
[331065053,1720057846039,-163.01429,0.00021429,2]
[331065055,1720057846049,-151.0,0.00021429,2]
[331065057,1720057846059,-177.629593,0.00021429,2]
[331065059,1720057846069,-151.0,0.00021429,2]
[331065061,1720057846079,-608.57932202,0.0002145,2]
[331065063,1720057846089,-5000.0,0.00021459,2]
[331065065,1720057846098,-3826.25951742,0.00021506,2]
[331065067,1720057846108,-5000.0,0.00021508,2]
[331065069,1720057846117,-400.51815,0.0002153,2]
[331065071,1720057846126,-611.45,0.00021542,2]
[331065073,1720057846135,-25000.0,0.0002155,2]
[331065075,1720057846144,-163.01429,0.0002155,2]
[331065077,1720057846154,-151.0,0.0002155,2]
[331065079,1720057846163,-177.808919,0.0002155,2]
[331065081,1720057846173,-248.43113677,0.00021585,2]
[331065083,1720057846182,-5000.0,0.00021598,2]
[331065085,1720057846192,-5000.0,0.000216,7]
[331065087,1720057846202,-300.0,0.00021606,2]
[331065089,1720057846212,-2100.0,0.00021606,2]
[331065091,1720057846222,-190.628666,0.00021621,2]
[331065093,1720057846241,-173.500796,0.00021621,2]
[331065095,1720057846250,-5000.0,0.00021635,2]
[331065098,1720057846260,-600.0,0.00021635,2]
[331065100,1720057846274,-198.0,0.0002164,3]
[331065102,1720057846283,-151.0,0.00021641,2]
[331065104,1720057846293,-169.52,0.00021644,2]
[331065106,1720057846303,-435.11,0.00021644,2]
[331065109,1720057846313,-151.49,0.00021644,2]
[331065112,1720057846323,-283.06,0.00021644,2]
[331065114,1720057846332,-5000.0,0.00021645,2]
[331065116,1720057846341,-163.014286,0.00021645,2]
[331065118,1720057846350,-151.0,0.00021645,2]
[331065120,1720057846362,-435.79,0.00021659,2]
[331065122,1720057846371,-3826.25951742,0.0002166,2]
[331065124,1720057846381,-6700.0,0.000217,7]
[331065126,1720057846390,-25000.0,0.00021702,2]
[331065128,1720057846400,-5000.0,0.00021713,2]
[331065130,1720057846409,-5000.0,0.00021741,2]
[331065132,1720057846419,-4682.08,0.00021746,2]
[331065134,1720057846428,-5000.0,0.00021748,2]
[331065136,1720057846437,-9024.0,0.00021761,2]
[331065138,1720057846447,-25000.0,0.00021778,2]
[331065140,1720057846456,-2508.97963727,0.00021781,2]
[331065142,1720057846465,-1081.72270172,0.00021799,5]
[331065144,1720057846475,-8400.0,0.000218,7]
[331065146,1720057846490,-171.47804094,0.00021807,2]
[331065147,1720057846499,-3826.25951742,0.00021814,2]
[331065148,1720057846509,-15734.6741,0.00021817,2]
[331065149,1720057846518,-5389.76803122,0.00021817,2]
[331065150,1720057846532,-19610.23196878,0.00021817,2]
[331065151,1720057846542,-248.43113677,0.00021817,2]
[331065152,1720057846552,-191.82023976,0.00021817,2]
[331065153,1720057846561,-228.40687905,0.00021817,2]
[331065154,1720057846571,-12868.36592539,0.00021817,2]
[331065155,1720057846580,-5000.0,0.00021867,2]
[331065156,1720057846590,-5000.0,0.00021868,2]
[331065157,1720057846599,-401.7924755,0.0002187,2]
[331065158,1720057846609,-500.0,0.00021873,2]
[331065159,1720057846622,-500.0,0.00021882,2]
[331065160,1720057846632,-150.5,0.00021887,30]
[331065161,1720057846642,-195.46033465,0.0002189,2]
[331065162,1720057846679,-304.53966535,0.0002189,2]
[331065163,1720057846689,-146.29674501,0.00021891,2]
[331065164,1720057846700,-353.70325499,0.00021891,2]
[331065165,1720057846710,-179.62485198,0.00021895,2]
[331065166,1720057846719,-150.5,0.00021897,30]
[331065167,1720057846732,-271.60516534,0.00021899,2]
[331065168,1720057846744,-228.39483466,0.00021899,2]
[331065169,1720057846754,-1600.0,0.000219,7]
[331065170,1720057846764,-2000.0,0.000219,3]
[331065171,1720057846773,-2000.0,0.000219,3]
[331065172,1720057846783,-2000.0,0.000219,3]
[331065173,1720057846794,-3760.88252572,0.000219,7]
[331065174,1720057846807,-191.0,0.000219,4]
[331065175,1720057846816,-1925.01877349,0.000219,2]
[331065176,1720057846828,-289.17118649,0.000219,2]
[331065177,1720057846838,-520.07208008,0.000219,2]
[331065178,1720057846850,-1479.92791992,0.000219,2]
[331065179,1720057846860,-150.0,0.000219,2]
[331065180,1720057846869,-1101.0,0.000219,9]
[331065181,1720057846878,-640.0,0.000219,4]
[331065182,1720057846888,-760.29307508,0.000219,2]
[331065183,1720057846899,-237.06692492,0.000219,2]
[331065184,1720057846909,-997.36,0.000219,2]
[331065185,1720057846918,-616.283157,0.000219,2]
[331065186,1720057846927,-508.3355,0.000219,2]
[331065187,1720057846936,-5000.0,0.00021902,2]
[331065188,1720057846946,-398.79562864,0.00021907,2]
[331065189,1720057846958,-150.5,0.00021907,30]
[331065190,1720057846968,-201.66652178,0.00021907,7]
[331065191,1720057846977,-500.0,0.00021908,2]
[331065192,1720057846990,-1081.72270172,0.00021912,5]
[331065193,1720057846999,-5000.0,0.00021916,2]
[331065194,1720057847008,-1081.72270172,0.00021916,5]
[331065195,1720057847017,-234.070411,0.00021916,4]
[331065196,1720057847026,-5013.46526821,0.00021916,2]
[331065197,1720057847035,-1000.0,0.00021916,2]
[331065198,1720057847045,-300.0,0.00021916,2]
[331065199,1720057847054,-300.0,0.00021916,2]
[331065200,1720057847064,-300.0,0.00021916,2]
[331065201,1720057847074,-302.53823627,0.00021916,2]
[331065202,1720057847083,-508.12097939,0.00021917,4]
[331065203,1720057847092,-500.0,0.00021917,4]
[331065204,1720057847102,-500.0,0.00021917,4]
[331065205,1720057847112,-501.94231977,0.00021917,4]
[331065206,1720057847121,-514.87737274,0.00021917,4]
[331065207,1720057847130,-516.3950857,0.00021917,4]
[331065208,1720057847140,-831.54,0.00021917,4]
[331065209,1720057847149,-831.54,0.00021917,4]
[331065210,1720057847159,-831.54,0.00021917,4]
[331065211,1720057847170,-831.54,0.00021917,4]
[331065212,1720057847179,-831.54,0.00021917,4]
[331065213,1720057847188,-831.54,0.00021917,4]
[331065214,1720057847197,-831.54,0.00021917,4]